fUSD/lending_fUSD_20251227
["ID","MTS","AMOUNT","RATE_DAILY","PERIOD"]
[399890869,1766821838020,-162.29375608,0.00013559,2]
[399890870,1766821838030,-500.0,0.00013559,2]
[399890871,1766821838040,-500.0,0.00013559,2]
[399890872,1766821838050,-500.0,0.00013559,2]
[399890873,1766821838060,-500.0,0.00013559,2]
[399890874,1766821838070,-500.0,0.00013559,2]
[399890875,1766821838080,-500.0,0.00013559,2]
[399890876,1766821838092,-500.0,0.00013559,2]
[399890877,1766821838102,-500.0,0.00013559,2]
[399890878,1766821838112,-245.72631424,0.00013559,2]
[399890879,1766821838125,-254.27368576,0.00013559,2]
[399890880,1766821838135,-500.0,0.00013559,2]
[399890881,1766821838146,-500.0,0.00013559,2]
[399890882,1766821838156,-70842.53311723,0.0001356,2]
[399890883,1766821838170,-4071.55773437,0.0001356,2]
[399890885,1766821838183,-77278.24957059,0.0001356,2]
[399890887,1766821838199,-400.0,0.0001356,2]
[399890888,1766821838211,-3341.54631403,0.0001356,2]
[399890889,1766821838228,-27146.67868933,0.0001356,2]
[399890890,1766821838240,-349.43400439,0.0001356,2]
[399890891,1766821840327,-690459.07101113,0.0001356,2]
[399890892,1766821840337,-500.0,0.00013699,2]
[399890893,1766821840348,-500.0,0.00013699,2]
[399890894,1766821840358,-500.0,0.00013699,2]
[399890896,1766821840368,-500.0,0.00013699,2]
[399890898,1766821840377,-500.0,0.00013699,2]
[399890899,1766821840387,-500.0,0.00013699,2]
[399890901,1766821840398,-500.0,0.00013699,2]
[399890902,1766821840408,-500.0,0.00013699,2]
[399890903,1766821840418,-500.0,0.00013699,2]
[399890904,1766821840428,-500.0,0.00013699,2]
[399890905,1766821840438,-546.535637,0.00013699,2]
[399890906,1766821840448,-500.0,0.00013699,2]
[399890907,1766821840459,-400.0,0.0001376,2]
[399890908,1766821840470,-500.0,0.0001376,2]
[399890909,1766821840480,-500.0,0.0001376,2]
[399890910,1766821840491,-500.0,0.0001376,2]
[399890911,1766821840501,-500.0,0.0001376,2]
[399890912,1766821840512,-500.0,0.00014072,2]
[399890913,1766821840522,-287.83,0.00014222,2]
[399890914,1766821840538,-177.11753301,0.00014373,2]
[399890915,1766821840548,-500.81403771,0.00014373,2]
[399890916,1766821840558,-999.0,0.00014407,3]
[399890917,1766821840569,-150.0,0.00014671,2]
[399890918,1766821840579,-166.66,0.00014691,2]
[399890919,1766821840589,-600.0,0.00014834,2]
[399890920,1766821840600,-436.96815083,0.00014834,2]
[399890921,1766821840610,-193.0,0.00014834,2]
[399890922,1766821840620,-250.0,0.00014834,2]
[399890923,1766821840630,-195.0,0.00014834,2]
[399890924,1766821840639,-195.0,0.00014834,2]
[399890925,1766821840650,-300.0,0.00014834,2]
[399890926,1766821840661,-250.0,0.00014915,2]
[399890927,1766821840671,-166.66,0.00015001,2]
[399890928,1766821840681,-166.66,0.0001531,2]
[399890929,1766821840690,-9162.5,0.00015441,2]
[399890930,1766821840699,-166.66,0.00015619,2]
[399890931,1766821840709,-151.0,0.00015834,2]
[399890932,1766821840718,-151.0,0.00015834,2]
[399890933,1766821840728,-151.0,0.00015853,2]
[399890934,1766821840738,-151.0,0.00015853,2]
[399890935,1766821840748,-151.0,0.00015855,2]
[399890936,1766821840759,-151.0,0.00015855,2]
[399890937,1766821840769,-151.0,0.0001587,2]
[399890938,1766821840779,-151.0,0.0001587,2]
[399890939,1766821840788,-166.66,0.00015929,2]
[399890940,1766821840799,-287.83,0.00015999,2]
[399890941,1766821840810,-200.0,0.00016149,2]
[399890942,1766821840820,-207.4,0.00016149,2]
[399890943,1766821840830,-215.0738,0.00016149,2]
[399890944,1766821840840,-223.0315306,0.00016149,2]
[399890945,1766821840850,-231.28369723,0.00016149,2]
[399890946,1766821840860,-239.84119403,0.00016149,2]
[399890947,1766821840870,-248.71531821,0.00016149,2]
[399890948,1766821840884,-180.26151853,0.00016149,2]
[399890949,1766821840894,-620.0,0.00016149,2]
[399890950,1766821840904,-500.0,0.00016149,2]
[399890951,1766821840914,-500.0,0.00016149,2]
[399890952,1766821840924,-500.0,0.00016149,2]
[399890953,1766821840934,-500.0,0.00016149,2]
[399890954,1766821840947,-500.0,0.00016149,2]
[399890955,1766821840957,-500.0,0.00016149,2]
[399890956,1766821840967,-500.0,0.00016149,2]
[399890957,1766821840977,-500.0,0.00016149,2]
[399890958,1766821840987,-500.0,0.00016149,2]
[399890959,1766821840997,-500.0,0.00016149,2]
[399890960,1766821841007,-500.0,0.00016149,2]
[399890961,1766821841018,-500.0,0.00016149,2]
[399890962,1766821841028,-500.0,0.00016149,2]
[399890963,1766821841037,-500.0,0.00016149,2]
[399890964,1766821841047,-500.0,0.00016149,2]
[399890965,1766821841056,-574.12855637,0.00016149,2]
[399890966,1766821841066,-250.0,0.00016149,2]
[399890967,1766821841079,-250.0,0.00016149,2]
[399890968,1766821841089,-250.0,0.00016149,2]
[399890969,1766821841098,-250.0,0.00016149,2]
[399890970,1766821841108,-250.0,0.00016149,2]
[399890971,1766821841118,-250.0,0.00016149,2]
[399890972,1766821841128,-250.0,0.00016149,2]
[399890973,1766821841138,-284.00951842,0.00016149,2]
[399890974,1766821841148,-250.0,0.00016149,2]
[399890975,1766821841158,-250.0,0.00016149,2]
[399890976,1766821841167,-250.0,0.00016149,2]
[399890977,1766821841177,-250.0,0.00016149,2]
[399890978,1766821841187,-282.85294632,0.00016149,2]
[399890979,1766821841196,-166.66,0.00016238,2]
[399890980,1766821841206,-1000.0,0.0001645,2]
[399890981,1766821841215,-777.3095377,0.0001685,2]
[399890982,1766821841224,-5855.8022643,0.0001689,2]
[399890983,1766821841233,-815.35,0.00016897,2]
[399890984,1766821841242,-323.84417295,0.000169,2]
[399890985,1766821841251,-13016.04929566,0.000169,2]
[399890986,1766821841261,-155.40194278,0.000169,2]
[399890987,1766821841274,-390.71191905,0.000169,2]
[399890988,1766821841284,-1183.2622,0.000169,2]
[399890989,1766821841294,-302.0,0.00016959,2]
[399890990,1766821841303,-151.0,0.00016997,2]
[399890991,1766821841314,-500.0,0.00016999,2]
[399890992,1766821841324,-500.0,0.00016999,2]
[399890993,1766821841334,-500.0,0.00016999,2]
[399890994,1766821841344,-570.0,0.00017,2]
[399890995,1766821841354,-1177344.48820351,0.00017,2]
[399890996,1766821841364,-678956.24176711,0.00017,2]
[399890997,1766821841374,-7038.65363435,0.00017,2]
[399890998,1766821841385,-151.54172272,0.00017,2]
[399890999,1766821841395,-7328.51157308,0.00017,2]
[399891000,1766821841404,-413.29580411,0.00017,2]
[399891001,1766821841415,-217.94885391,0.00017,2]
[399891002,1766821841424,-44746.53765289,0.00017,2]
[399891007,1766821844360,-202.40129515,0.000169,2]
[399891008,1766821844371,-3982.77936511,0.00017,2]
[399891011,1766821845328,-2022.9380329,0.00017,2]
[399891012,1766821845341,-26740.53155755,0.00017,2]
[399891013,1766821845913,-332.818322,0.00017,2]
[399891015,1766821846235,-7415.94707886,0.00017,2]
[399891018,1766821848281,552.47354,0.0003013,120]
[399891025,1766821872218,306.01360354,0.00030137,120]
[399891087,1766822203154,3024.4176723,0.00030137,120]
[399891098,1766822424702,375.0,0.0003,120]
[399891148,1766822993564,255.49,0.00030137,120]
[399891151,1766823032006,-300.0,0.00013679,2]
[399891152,1766823032016,-336.03,0.00013699,2]
[399891153,1766823032027,-195.0,0.00013699,2]
[399891154,1766823032038,-436.96815083,0.00013699,2]
[399891155,1766823032048,-150.0,0.00013759,2]
[399891156,1766823032059,-500.0,0.0001376,2]
[399891157,1766823032070,-500.0,0.0001376,2]
[399891158,1766823032080,-320.3378329,0.0001376,2]
[399891159,1766823032218,-179.6621671,0.0001376,2]
[399891160,1766823032228,-500.0,0.0001376,2]
[399891161,1766823032239,-500.0,0.0001376,2]
[399891162,1766823032249,-500.0,0.0001376,2]
[399891163,1766823032259,-402.71309674,0.0001376,2]
[399891164,1766823032274,-97.28690326,0.0001376,2]
[399891165,1766823032284,-500.0,0.0001376,2]
[399891166,1766823032298,-178.99592917,0.0001376,2]
[399891167,1766823032311,-321.00407083,0.0001376,2]
[399891168,1766823032321,-234.65801869,0.0001376,2]
[399891170,1766823032335,-250.0,0.0001376,2]
[399891172,1766823032347,-1203.55198131,0.0001376,2]
[399891173,1766823032358,-1688.21,0.00014034,2]
[399891175,1766823032369,-500.0,0.00014072,2]
[399891177,1766823032379,-500.0,0.00014072,2]
[399891179,1766823032389,-500.0,0.00014072,2]
[399891181,1766823032399,-200.0,0.00014099,2]
[399891183,1766823032408,-150.0,0.00014099,2]
[399891185,1766823032418,-500.0,0.00014099,2]
[399891186,1766823032428,-500.0,0.00014099,2]
[399891188,1766823032438,-150.0,0.00014099,2]
[399891190,1766823032448,-500.0,0.00014099,2]
[399891192,1766823032458,-174.82250522,0.00014126,2]
[399891194,1766823032468,-500.0,0.00014126,2]
[399891196,1766823032478,-518.01684681,0.00014126,2]
[399891198,1766823032488,-244.23455351,0.00014126,2]
[399891199,1766823032498,-500.0,0.00014126,2]
[399891201,1766823032508,-335.94071721,0.00014154,2]
[399891203,1766823032518,-500.0,0.00014154,2]
[399891205,1766823032528,-15046.54,0.00014293,2]
[399891207,1766823032538,-48191.18121276,0.00014295,2]
[399891209,1766823032547,-1688.21,0.00014308,2]
[399891210,1766823032557,-150.0,0.00014342,2]
[399891212,1766823032567,-500.0,0.00014373,2]
[399891214,1766823032577,-500.0,0.00014373,2]
[399891215,1766823032587,-172.76362866,0.00014373,2]
[399891216,1766823032597,-163.8745392,0.00014373,2]
[399891217,1766823032608,-500.38383146,0.00014373,2]
[399891218,1766823032618,-500.0,0.00014373,2]
[399891219,1766823032628,-501.47157547,0.00014373,2]
[399891220,1766823032638,-466.57897047,0.00014373,2]
[399891221,1766823032649,-500.0,0.00014373,2]
[399891222,1766823032673,-500.0,0.00014373,2]
[399891223,1766823032684,-505.52174355,0.00014373,2]
[399891224,1766823032695,-500.81403771,0.00014373,2]
[399891225,1766823032705,-500.0,0.00014373,2]
[399891226,1766823032715,-500.0,0.00014373,2]
[399891227,1766823032725,-500.0,0.00014373,2]
[399891228,1766823032735,-500.0,0.00014373,2]
[399891229,1766823032745,-503.89734133,0.00014373,2]
[399891230,1766823032757,-3240.0,0.00014402,2]
[399891231,1766823032768,-1688.21,0.00014582,2]
[399891232,1766823032778,-200.0,0.00014793,2]
[399891233,1766823032788,-1688.21,0.00014856,2]
[399891234,1766823032798,-200.0,0.00014913,2]
[399891235,1766823032808,-177.11753301,0.00014921,2]
[399891236,1766823032818,-688.77,0.00014957,2]
[399891237,1766823032829,-250.0,0.00015026,2]
[399891238,1766823032839,-300.0,0.00015026,2]
[399891239,1766823032849,-195.0,0.00015026,2]
[399891240,1766823032859,-300.0,0.00015026,2]
[399891241,1766823032869,-600.0,0.00015026,2]
[399891242,1766823032878,-193.0,0.00015026,2]
[399891243,1766823032888,-250.0,0.00015026,2]
[399891244,1766823032898,-250.0,0.00015026,2]
[399891245,1766823032910,-195.0,0.00015026,2]
[399891246,1766823032928,-300.0,0.00015026,2]
[399891247,1766823032938,-4643.58991754,0.00015047,2]
[399891248,1766823032947,-1688.21,0.0001513,2]
[399891249,1766823032957,-1688.21,0.00015404,2]
[399891250,1766823032967,-1079.04945441,0.0001541,2]
[399891251,1766823032977,-151.0,0.00015438,2]
[399891252,1766823032987,-151.0,0.00015438,2]
[399891253,1766823032997,-151.0,0.00015439,2]
[399891254,1766823033007,-151.0,0.00015439,2]
[399891255,1766823033023,-151.0,0.00015439,2]
[399891256,1766823033033,-151.0,0.00015439,2]
[399891257,1766823033044,-151.0,0.00015467,2]
[399891258,1766823033054,-151.0,0.00015467,2]
[399891259,1766823033064,-21286.94215682,0.00015514,2]
[399891260,1766823033075,-1852.42,0.00015519,2]
[399891261,1766823033085,-263.8,0.00015521,2]
[399891262,1766823033096,-151.0,0.00015542,2]
[399891263,1766823033107,-151.0,0.00015542,2]
[399891264,1766823033118,-151.0,0.00015542,2]
[399891265,1766823033129,-151.0,0.00015542,2]
[399891266,1766823033141,-151.0,0.00015542,2]
[399891267,1766823033151,-151.0,0.00015542,2]
[399891268,1766823033162,-151.0,0.00015542,2]
[399891269,1766823033172,-151.0,0.00015542,2]
[399891270,1766823033183,-151.0,0.00015542,2]
[399891271,1766823033194,-151.0,0.00015542,2]
[399891272,1766823033205,-151.0,0.00015542,2]
[399891273,1766823033216,-11187.30150404,0.00015552,2]
[399891274,1766823033230,-2606.58849596,0.00015552,2]
[399891275,1766823033241,-279.39,0.00015627,2]
[399891276,1766823033251,-1155.17198153,0.00015634,2]
[399891277,1766823033627,-500.0,0.00014181,2]
[399891278,1766823033638,-3066.42502875,0.00015634,2]
[399891279,1766823038095,-500.0,0.00014209,2]
[399891281,1766823038105,-274.7752605,0.00014236,2]
[399891283,1766823038143,-127.70653602,0.00014236,2]
[399891284,1766823038153,-151.0,0.00015467,2]
[399891285,1766823038163,-1890.88242754,0.00015634,2]
[399891286,1766823038177,-945.26829767,0.00015634,2]
[399891287,1766823038189,-1465.13567201,0.00015634,2]
[399891288,1766823038201,-830.2965925,0.00015634,2]
[399891289,1766823038211,-1688.21,0.00015678,2]
[399891290,1766823038221,-369.66538637,0.00015897,2]
[399891291,1766823038234,-813.59681363,0.00015897,2]
[399891292,1766823038245,-1309.0356,0.00015897,2]
[399891293,1766823038258,-236.0922,0.00015897,2]
[399891294,1766823038268,-6709.997357,0.00015948,2]
[399891295,1766823038280,-17490.45312097,0.00015948,2]
[399891296,1766823038294,-5855.8022643,0.00015949,2]
[399891297,1766823038304,-1072.65997426,0.00015949,2]
[399891298,1766823038317,-564.0886184,0.00015949,2]
[399891299,1766823038331,-863.25140734,0.00015949,2]
[399891300,1766823038340,-700.36604594,0.00015952,2]
[399891301,1766823038352,-987.84395406,0.00015952,2]
[399891302,1766823038363,-195.35595953,0.00015983,2]
[399891303,1766823038373,-179.54008641,0.00015983,2]
[399891304,1766823038385,-223.22814265,0.00015983,2]
[399891305,1766823038395,-223.37389396,0.00015996,2]
[399891307,1766823038405,-407.64016133,0.00015997,2]
[399891309,1766823038415,-18162.07790881,0.00015997,2]
[399891311,1766823038431,-479.63677586,0.00015997,2]
[399891312,1766823038443,-1396.78893979,0.00015997,2]
[399891313,1766823038456,-3405.62227505,0.00015997,2]
[399891314,1766823038465,-500.0,0.00016048,2]
[399891315,1766823038475,-501.19153459,0.00016048,2]
[399891316,1766823038485,-500.0,0.00016048,2]
[399891317,1766823038495,-500.0,0.00016048,2]
[399891319,1766823038505,-500.0,0.00016048,2]
[399891321,1766823038515,-500.0,0.00016048,2]
[399891323,1766823038524,-500.0,0.00016048,2]
[399891325,1766823038534,-500.0,0.00016048,2]
[399891327,1766823038544,-500.0,0.00016048,2]
[399891329,1766823038554,-500.0,0.00016048,2]
[399891331,1766823038564,-500.0,0.00016048,2]
[399891333,1766823038575,-500.0,0.00016048,2]
[399891335,1766823038585,-126.35885673,0.00016048,2]
[399891337,1766823038598,-373.64114327,0.00016048,2]
[399891339,1766823038608,-500.0,0.00016048,2]
[399891340,1766823038618,-500.0,0.00016048,2]
[399891341,1766823038632,-500.0,0.00016048,2]
[399891342,1766823038642,-500.0,0.00016048,2]
[399891343,1766823038654,-500.0,0.00016048,2]
[399891344,1766823038664,-500.0,0.00016048,2]
[399891345,1766823038674,-500.0,0.00016048,2]
[399891346,1766823038685,-500.0,0.00016048,2]
[399891347,1766823038695,-500.0,0.00016048,2]
[399891348,1766823038706,-500.0,0.00016048,2]
[399891349,1766823038717,-500.0,0.00016048,2]
[399891350,1766823038727,-500.0,0.00016048,2]
[399891351,1766823038737,-500.0,0.00016048,2]
[399891352,1766823038747,-500.0,0.00016048,2]
[399891353,1766823038758,-500.0,0.00016048,2]
[399891354,1766823038767,-500.0,0.00016048,2]
[399891355,1766823038777,-500.0,0.00016048,2]
[399891356,1766823038787,-500.0,0.00016048,2]
[399891357,1766823038797,-500.0,0.00016048,2]
[399891358,1766823038807,-500.0,0.00016048,2]
[399891359,1766823038819,-595.20438035,0.00016048,2]
[399891360,1766823038830,-500.0,0.00016048,2]
[399891361,1766823038841,-500.0,0.00016048,2]
[399891362,1766823038852,-500.0,0.00016048,2]
[399891363,1766823038863,-500.0,0.00016048,2]
[399891364,1766823038873,-500.0,0.00016048,2]
[399891365,1766823038884,-500.0,0.00016048,2]
[399891366,1766823038894,-500.0,0.00016048,2]
[399891367,1766823038904,-500.0,0.00016048,2]
[399891368,1766823038915,-500.0,0.00016048,2]
[399891369,1766823038926,-500.0,0.00016048,2]
[399891370,1766823038936,-500.0,0.00016048,2]
[399891371,1766823038947,-500.0,0.00016048,2]
[399891372,1766823038957,-500.0,0.00016048,2]
[399891373,1766823038968,-500.0,0.00016048,2]
[399891374,1766823038978,-500.0,0.00016048,2]
[399891375,1766823039243,-500.0,0.00016048,2]
[399891376,1766823039254,-500.0,0.00016048,2]
[399891377,1766823039265,-500.0,0.00016048,2]
[399891378,1766823039275,-500.0,0.00016048,2]
[399891379,1766823039285,-500.0,0.00016048,2]
[399891380,1766823039299,-500.0,0.00016048,2]
[399891381,1766823039309,-500.0,0.00016048,2]
[399891382,1766823039319,-500.0,0.00016048,2]
[399891383,1766823039328,-500.0,0.00016048,2]
[399891384,1766823039338,-500.0,0.00016048,2]
[399891385,1766823039352,-500.0,0.00016048,2]
[399891386,1766823039363,-500.0,0.00016048,2]
[399891387,1766823039372,-596.23739861,0.00016048,2]
[399891388,1766823039382,-500.0,0.00016048,2]
[399891389,1766823039392,-500.0,0.00016048,2]
[399891390,1766823039402,-500.0,0.00016048,2]
[399891391,1766823039412,-500.0,0.00016048,2]
[399891392,1766823039423,-500.0,0.00016048,2]
[399891393,1766823039433,-500.0,0.00016048,2]
[399891394,1766823039443,-500.0,0.00016048,2]
[399891395,1766823039452,-500.0,0.00016048,2]
[399891396,1766823039462,-500.0,0.00016048,2]
[399891397,1766823039472,-500.0,0.00016048,2]
[399891398,1766823039482,-500.0,0.00016048,2]
[399891399,1766823039492,-575.85798798,0.00016048,2]
[399891400,1766823039502,-500.0,0.00016048,2]
[399891401,1766823039511,-500.0,0.00016048,2]
[399891402,1766823039521,-500.0,0.00016048,2]
[399891403,1766823039532,-500.0,0.00016048,2]
[399891404,1766823039541,-500.0,0.00016048,2]
[399891405,1766823039551,-500.0,0.00016048,2]
[399891406,1766823039561,-500.0,0.00016048,2]
[399891407,1766823039571,-500.0,0.00016048,2]
[399891408,1766823039581,-500.0,0.00016048,2]
[399891409,1766823039591,-500.0,0.00016048,2]
[399891410,1766823039602,-500.0,0.00016048,2]
[399891411,1766823039611,-500.0,0.00016048,2]
[399891412,1766823039621,-500.0,0.00016048,2]
[399891413,1766823039632,-500.0,0.00016048,2]
[399891414,1766823039642,-500.0,0.00016048,2]
[399891415,1766823039651,-500.0,0.00016048,2]
[399891416,1766823039663,-500.0,0.00016048,2]
[399891417,1766823039673,-501.81600823,0.00016048,2]
[399891418,1766823039683,-417.31881849,0.00016048,2]
[399891419,1766823039692,-334.21,0.00016083,2]
[399891420,1766823039702,-1984.29,0.00016097,2]
[399891421,1766823039711,-500.0,0.00016148,2]
[399891422,1766823039722,-500.0,0.00016148,2]
[399891423,1766823039732,-500.0,0.00016148,2]
[399891424,1766823039742,-300.0,0.00016148,2]
[399891425,1766823039752,-322.6107,0.00016149,2]
[399891426,1766823039762,-500.0,0.00016149,2]
[399891427,1766823039772,-250.0,0.00016149,2]
[399891428,1766823039782,-250.0,0.00016149,2]
[399891429,1766823039793,-500.0,0.00016149,2]
[399891430,1766823039803,-250.0,0.00016149,2]
[399891431,1766823039813,-500.0,0.00016149,2]
[399891432,1766823039823,-250.0,0.00016149,2]
[399891433,1766823039833,-500.0,0.00016149,2]
[399891434,1766823039843,-250.0,0.00016149,2]
[399891435,1766823039853,-578.20924308,0.00016149,2]
[399891436,1766823039862,-500.0,0.00016149,2]
[399891437,1766823039872,-250.0,0.00016149,2]
[399891438,1766823039882,-500.0,0.00016149,2]
[399891439,1766823039892,-250.0,0.00016149,2]
[399891440,1766823039902,-500.0,0.00016149,2]
[399891441,1766823039912,-250.0,0.00016149,2]
[399891442,1766823039922,-500.0,0.00016149,2]
[399891443,1766823039931,-500.0,0.00016149,2]
[399891444,1766823039941,-250.0,0.00016149,2]
[399891445,1766823039950,-500.0,0.00016149,2]
[399891446,1766823039960,-500.0,0.00016149,2]
[399891447,1766823039970,-500.0,0.00016149,2]
[399891448,1766823039980,-250.0,0.00016149,2]
[399891449,1766823039990,-500.0,0.00016149,2]
[399891450,1766823039999,-500.0,0.00016149,2]
[399891451,1766823040009,-250.0,0.00016149,2]
[399891452,1766823040018,-500.0,0.00016149,2]
[399891453,1766823040029,-500.0,0.00016149,2]
[399891454,1766823040039,-574.12855637,0.00016149,2]
[399891455,1766823040050,-500.0,0.00016149,2]
[399891456,1766823040060,-250.0,0.00016149,2]
[399891457,1766823040070,-500.0,0.00016149,2]
[399891458,1766823040080,-500.0,0.00016149,2]
[399891459,1766823040089,-250.0,0.00016149,2]
[399891460,1766823040099,-500.0,0.00016149,2]
[399891461,1766823040109,-500.0,0.00016149,2]
[399891462,1766823040127,-500.0,0.00016149,2]
[399891463,1766823040137,-500.0,0.00016149,2]
[399891464,1766823040147,-500.0,0.00016149,2]
[399891465,1766823040158,-500.0,0.00016149,2]
[399891466,1766823040168,-500.0,0.00016149,2]
[399891467,1766823040178,-500.0,0.00016149,2]
[399891468,1766823040188,-500.0,0.00016149,2]
[399891469,1766823040198,-500.0,0.00016149,2]
[399891470,1766823040208,-620.0,0.00016149,2]
[399891472,1766823040218,-500.0,0.00016149,2]
[399891474,1766823040227,-500.0,0.00016149,2]
[399891475,1766823040237,-250.0,0.00016149,2]
[399891476,1766823040247,-500.0,0.00016149,2]
[399891477,1766823040257,-500.0,0.00016149,2]
[399891478,1766823040267,-250.0,0.00016149,2]
[399891479,1766823040276,-250.0,0.00016149,2]
[399891480,1766823040287,-284.00951842,0.00016149,2]
[399891481,1766823040300,-152.20980143,0.00016149,2]
[399891482,1766823040310,-250.0,0.00016149,2]
[399891483,1766823040320,-200.0,0.00016149,2]
[399891484,1766823040330,-250.0,0.00016149,2]
[399891485,1766823040340,-207.4,0.00016149,2]
[399891486,1766823040351,-250.0,0.00016149,2]
[399891487,1766823040362,-215.0738,0.00016149,2]
[399891488,1766823040373,-250.0,0.00016149,2]
[399891489,1766823040383,-223.0315306,0.00016149,2]
[399891490,1766823040392,-282.85294632,0.00016149,2]
[399891491,1766823040402,-231.28369723,0.00016149,2]
[399891492,1766823040412,-250.0,0.00016149,2]
[399891493,1766823040422,-239.84119403,0.00016149,2]
[399891494,1766823040432,-250.0,0.00016149,2]
[399891495,1766823040442,-248.71531821,0.00016149,2]
[399891496,1766823040452,-250.0,0.00016149,2]
[399891497,1766823040461,-257.91778498,0.00016149,2]
[399891498,1766823040472,-250.0,0.00016149,2]
[399891499,1766823040482,-267.46074303,0.00016149,2]
[399891500,1766823040493,-250.0,0.00016149,2]
[399891501,1766823040504,-277.35679052,0.00016149,2]
[399891502,1766823040514,-250.0,0.00016149,2]
[399891503,1766823040524,-250.0,0.00016149,2]
[399891504,1766823040534,-250.0,0.00016149,2]
[399891505,1766823040544,-250.0,0.00016149,2]
[399891506,1766823040554,-250.0,0.00016149,2]
[399891507,1766823040564,-250.0,0.00016149,2]
[399891508,1766823040574,-1688.21,0.00016226,2]
[399891509,1766823040583,-156.93,0.0001638,2]
[399891510,1766823040593,-279.39,0.00016495,2]
[399891511,1766823040603,-1688.21,0.000165,2]
[399891512,1766823040612,-413.29580411,0.0001666,2]
[399891513,1766823040622,-1670.809,0.0001667,2]
[399891514,1766823040632,-168.0,0.00016704,2]
[399891515,1766823040642,-168.0,0.0001673,2]
[399891516,1766823040652,-224.2608279,0.00016763,2]
[399891517,1766823040661,-1688.21,0.00016774,2]
[399891518,1766823040671,-200.0,0.00016864,2]
[399891519,1766823040682,-195.35595952,0.00016896,2]
[399891520,1766823040692,-151.0,0.00016897,2]
[399891521,1766823040703,-28447.4601,0.000169,2]
[399891522,1766823040713,-1000.0,0.000169,2]
[399891523,1766823040723,-2857.8592,0.000169,2]
[399891524,1766823040733,-153.24,0.00016905,2]
[399891525,1766823040743,-24200.45047795,0.00016943,2]
[399891526,1766823040752,-302.0,0.00016959,2]
[399891527,1766823040762,-52394.86,0.00016986,2]
[399891528,1766823040772,-500.0,0.00016995,2]
[399891529,1766823040782,-500.0,0.00016995,2]
[399891530,1766823040792,-564.41065647,0.00016995,2]
[399891531,1766823040803,-500.0,0.00016995,2]
[399891532,1766823040813,-500.0,0.00016995,2]
[399891533,1766823040823,-500.0,0.00016995,2]
[399891534,1766823040833,-500.0,0.00016995,2]
[399891535,1766823040842,-500.0,0.00016995,2]
[399891536,1766823040852,-500.0,0.00016995,2]
[399891537,1766823040862,-500.0,0.00016995,2]
[399891538,1766823040872,-382.48973277,0.00016995,2]
[399891539,1766823040882,-174.76631411,0.00016995,2]
[399891540,1766823040892,-500.0,0.00016995,2]
[399891541,1766823040902,-500.0,0.00016995,2]
[399891542,1766823040912,-500.0,0.00016995,2]
[399891543,1766823040921,-500.0,0.00016995,2]
[399891544,1766823040931,-500.0,0.00016995,2]
[399891545,1766823040941,-2511.748061,0.00016996,2]
[399891546,1766823040952,-102870.483727,0.00016996,2]
[399891548,1766823040970,-777.3095379,0.00016996,2]
[399891550,1766823040980,-151.0,0.00016997,2]
[399891551,1766823040990,-1115.60769282,0.00016999,5]